[Event "9th Holuj-Radzikowska Rapid 19"]
[Site "Wroclaw"]
[Date "2019.12.07"]
[Round "3"]
[White "Badelka, Olga"]
[Black "Antolak, Julia"]
[Result "1-0"]
[ECO "A53"]
[WhiteElo "2399"]
[BlackElo "2249"]
[Annotator "NA"]
[PlyCount "112"]
[EventDate "2019.12.06"]
[EventType "team-tourn"]
[EventCountry "POL"]
[SourceTitle "playchess.com"]
[Source "ChessBase"]
[SourceQuality "1"]
[WhiteTeam "Team World"]
[BlackTeam "Team Poland"]
[TimeControl "900+10"]

1. d4 {[%emt 0:00:00]} Nf6 {[%emt 0:00:00]} 2. c4 {[%emt 0:00:00]} d6 {[%emt 0:00:00]} 3. Nc3 {[%emt 0:00:00]} Nbd7 {[%emt 0:00:00]} 4. Nf3 {[%emt 0:00:24]} e5 {[%emt 0:00:00]} 5. Bg5 {[%emt 0:00:03]} c6 {[%emt 0:00:38]} 6. e3 {[%emt 0:00:01]} Be7 {[%emt 0:00:02]} 7. Be2 {[%emt 0:00:02]} O-O {[%emt 0:00:03]} 8. O-O {[%emt 0:00:06]} Re8 {[%emt 0:00:55]} 9. Qc2 {[%emt 0:00:07]} Qc7 {[%emt 0:00:26]} 10. Rfd1 {[%emt 0:00:13]} Nf8 {[%emt 0:00:23]} 11. dxe5 {[%emt 0:00:20]} dxe5 {[%emt 0:00:03]} 12. Bxf6 {[%emt 0:01:43]} Bxf6 {[%emt 0:00:04]} 13. Ne4 {[%emt 0:00:05]} Be7 {[%emt 0:00:17]} 14. c5 {[%emt 0:00:55]} Bf5 {[%emt 0:01:20]} 15. Nf6+ {[%emt 0:00:44]} Bxf6 {[%emt 0:00:01]} 16. Qxf5 {[%emt 0:00:03]} e4 {[%emt 0:01:08]} 17. Nd4 {[%emt 0:00:24]} Re5 {[%emt 0:00:35]} 18. Qg4 {[%emt 0:00:44]} Rae8 {[%emt 0:01:46]} 19. Rac1 {[%emt 0:00:47]} Rg5 {[%emt 0:01:26]} 20. Qh3 {[%emt 0:00:02]} Qe5 {[%emt 0:01:58]} 21. g3 {[%emt 0:00:59]} h5 {[%emt 0:00:43]} 22. b4 {[%emt 0:00:03]} Ng6 {[%emt 0:02:17]} 23. a4 {[%emt 0:01:37]} Be7 {[%emt 0:00:30]} 24. Qd7 {[%emt 0:04:06]} Rb8 {[%emt 0:00:30]} 25. b5 {[%emt 0:01:51]} cxb5 {[%emt 0:00:12]} 26. c6 {[%emt 0:00:01]} Rd8 {[%emt 0:02:04]} 27. Qxb7 {[%emt 0:00:24]} h4 {[%emt 0:00:51]} 28. c7 {[%emt 0:01:34]} hxg3 {[%emt 0:00:04]} 29. cxd8=Q+ {[%emt 0:00:05]} Bxd8 {[%emt 0:00:00]} 30. hxg3 {[%emt 0:00:10]} Rxg3+ {[%emt 0:00:12]} 31. fxg3 {[%emt 0:00:06]} Qxg3+ {[%emt 0:00:00]} 32. Kf1 {[%emt 0:00:00]} Qh3+ {[%emt 0:00:55]} 33. Ke1 {[%emt 0:00:24]} Ba5+ {[%emt 0:00:01]} 34. Rd2 {[%emt 0:00:51]} Qxe3 {[%emt 0:00:01]} 35. Qb8+ {[%emt 0:01:13]} Nf8 {[%emt 0:00:01]} 36. Rcc2 {[%emt 0:00:41]} Qxd4 {[%emt 0:00:44]} 37. Qxb5 {[%emt 0:00:01]} Qg1+ {[%emt 0:00:22]} 38. Bf1 {[%emt 0:00:02]} Qg3+ {[%emt 0:00:33]} 39. Kd1 {[%emt 0:00:07]} Bxd2 {[%emt 0:00:04]} 40. Rxd2 {[%emt 0:00:05]} Qf3+ {[%emt 0:00:04]} 41. Be2 {[%emt 0:00:09]} Qc3 {[%emt 0:00:13]} 42. Qb2 {[%emt 0:00:28]} Qg3 {[%emt 0:00:05]} 43. Qb7 {[%emt 0:00:17]} Qg1+ {[%emt 0:00:09]} 44. Kc2 {[%emt 0:00:03]} Qc5+ {[%emt 0:00:01]} 45. Kb1 {[%emt 0:00:05]} e3 {[%emt 0:00:05]} 46. Rc2 {[%emt 0:00:02]} Qd4 {[%emt 0:00:02]} 47. a5 {[%emt 0:00:30]} Ne6 {[%emt 0:00:19]} 48. Qa8+ {[%emt 0:00:02]} Kh7 {[%emt 0:00:02]} 49. Qh1+ {[%emt 0:00:02]} Kg6 {[%emt 0:00:02]} 50. Bh5+ {[%emt 0:00:21]} Kf6 {[%emt 0:00:02]} 51. Qf3+ {[%emt 0:00:04]} Ke7 {[%emt 0:00:03]} 52. Qxf7+ Kd6 53. Qb7 {[%emt 0:00:29]} Ke5 {[%emt 0:00:25]} 54. Qb5+ {[%emt 0:00:08]} Kd6 {[%emt 0:00:15]} 55. Be2 {[%emt 0:00:13]} g5 {[%emt 0:00:09]} 56. Qd3 {[%emt 0:00:06]} Kd5 1-0

[Event "9th Holuj-Radzikowska Rapid 19"]
[Site "Wroclaw"]
[Date "2019.12.07"]
[Round "4"]
[White "Bulmaga, Irina"]
[Black "Cyfka, Karina"]
[Result "1/2-1/2"]
[ECO "C43"]
[WhiteElo "2434"]
[BlackElo "2410"]
[Annotator "NA"]
[PlyCount "126"]
[EventDate "2019.12.06"]
[EventType "team-tourn"]
[EventCountry "POL"]
[SourceTitle "playchess.com"]
[Source "ChessBase"]
[SourceQuality "1"]
[WhiteTeam "Team World"]
[BlackTeam "Team Poland"]
[TimeControl "900+10"]

1. e4 e5 2. Nf3 Nf6 3. d4 Nxe4 4. Bd3 d5 5. dxe5 Nc5 6. O-O Nxd3 7. Qxd3 Be7 8. Nc3 c6 9. Ne2 Na6 10. Ng3 Nc5 11. Qe3 g6 12. c3 h5 13. h3 h4 14. Ne2 Ne6 15. Rd1 Qb6 16. Nfd4 c5 17. Nf3 Qc6 18. Qd3 Nc7 19. Bg5 Bf5 20. Qd2 Bxg5 21. Nxg5 Ne6 22. Nxe6 fxe6 23. Qg5 Qc7 24. Qf6 Rh7 25. c4 d4 26. b4 b6 27. bxc5 bxc5 28. Nf4 Qf7 29. Qxf7+ Rxf7 30. Nd3 Bxd3 31. Rxd3 Rb8 32. Rb3 Rxb3 33. axb3 Rf5 34. Re1 Kd7 35. Ra1 Rxe5 36. Rxa7+ Kc6 37. Kf1 Kb6 38. Ra2 Kc6 39. Rd2 Kb6 40. Ra2 Kc6 41. Ra6+ Kb7 42. Ra5 Kb6 43. Rb5+ Kc6 44. Rb8 Kc7 45. Ra8 Kb7 46. Ra5 Kb6 47. Ra2 g5 48. Ra8 Kb7 49. Ra5 Kb6 50. Rb5+ Kc6 51. Ra5 Kb6 52. Ra2 Re4 53. Ra8 e5 54. Rb8+ Kc6 55. Rc8+ Kb6 56. Rb8+ Kc7 57. Rb5 Kc6 58. Rb8 Kc7 59. Rb5 Kd6 60. Rb6+ Kd7 61. Rb7+ Kc6 62. Rb8 Kc7 63. Rb5 Kc6 1/2-1/2

[Event "9th Holuj-Radzikowska Rapid 19"]
[Site "Wroclaw"]
[Date "2019.12.07"]
[Round "4"]
[White "Bodnaruk, Anastasia"]
[Black "Socko, Monika"]
[Result "1-0"]
[ECO "B12"]
[WhiteElo "2413"]
[BlackElo "2407"]
[Annotator "NA"]
[PlyCount "107"]
[EventDate "2019.12.06"]
[EventType "team-tourn"]
[EventCountry "POL"]
[SourceTitle "playchess.com"]
[Source "ChessBase"]
[SourceQuality "1"]
[WhiteTeam "Team World"]
[BlackTeam "Team Poland"]
[TimeControl "900+10"]

1. e4 {[%emt 0:00:00]} c6 {[%emt 0:00:00]} 2. d4 {[%emt 0:00:00]} d5 {[%emt 0:00:00]} 3. e5 {[%emt 0:00:00]} c5 {[%emt 0:00:00]} 4. c3 {[%emt 0:00:36]} Nc6 {[%emt 0:00:00]} 5. Be2 {[%emt 0:00:05]} Bf5 {[%emt 0:00:19]} 6. Nf3 {[%emt 0:00:02]} e6 {[%emt 0:00:16]} 7. O-O {[%emt 0:00:04]} Bg4 {[%emt 0:00:09]} 8. Nbd2 {[%emt 0:01:37]} cxd4 {[%emt 0:01:11]} 9. Nxd4 {[%emt 0:01:42]} Bxe2 {[%emt 0:00:04]} 10. Qxe2 {[%emt 0:00:01]} Nxd4 {[%emt 0:00:24]} 11. cxd4 {[%emt 0:00:01]} Ne7 {[%emt 0:00:01]} 12. b3 {[%emt 0:02:39]} Nc6 {[%emt 0:01:03]} 13. Bb2 {[%emt 0:00:06]} Be7 {[%emt 0:00:27]} 14. f4 {[%emt 0:00:09]} Qb6 {[%emt 0:00:57]} 15. Nf3 {[%emt 0:00:36]} O-O {[%emt 0:00:17]} 16. g4 {[%emt 0:01:12]} Rac8 {[%emt 0:00:34]} 17. Rac1 {[%emt 0:02:41]} Nb4 {[%emt 0:00:07]} 18. a3 {[%emt 0:00:44]} Qa6 {[%emt 0:00:47]} 19. Qxa6 {[%emt 0:00:21]} Nxa6 {[%emt 0:00:04]} 20. Kf2 {[%emt 0:00:40]} Rfd8 {[%emt 0:01:06]} 21. Ke3 {[%emt 0:00:43]} Kf8 {[%emt 0:00:02]} 22. Kd3 {[%emt 0:00:31]} Ke8 {[%emt 0:00:01]} 23. f5 {[%emt 0:00:08]} Kd7 {[%emt 0:01:29]} 24. Ng1 {[%emt 0:02:46]} Rxc1 {[%emt 0:00:09]} 25. Bxc1 {[%emt 0:00:09]} Rc8 {[%emt 0:02:34]} 26. Ne2 {[%emt 0:00:18]} Rf8 {[%emt 0:01:24]} 27. f6 {[%emt 0:00:11]} gxf6 {[%emt 0:00:01]} 28. exf6 {[%emt 0:00:01]} Bd6 {[%emt 0:00:01]} 29. g5 {[%emt 0:00:38]} Nb8 {[%emt 0:00:24]} 30. Rf3 {[%emt 0:00:09]} Nc6 {[%emt 0:00:58]} 31. Rh3 {[%emt 0:00:02]} e5 {[%emt 0:00:00]} 32. dxe5 {[%emt 0:00:47]} Nxe5+ {[%emt 0:00:27]} 33. Kd2 {[%emt 0:00:27]} Rh8 {[%emt 0:02:15]} 34. Nd4 {[%emt 0:00:11]} Ng6 {[%emt 0:00:41]} 35. Kd1 {[%emt 0:00:17]} Be5 {[%emt 0:00:36]} 36. Nf5 {[%emt 0:00:09]} Ke6 {[%emt 0:00:06]} 37. Ng7+ {[%emt 0:00:05]} Kd6 {[%emt 0:00:00]} 38. Bd2 {[%emt 0:00:08]} d4 {[%emt 0:00:05]} 39. Rh6 {[%emt 0:00:21]} Kd5 {[%emt 0:00:50]} 40. Nf5 {[%emt 0:00:08]} Ke4 {[%emt 0:00:06]} 41. Ne7 {[%emt 0:00:06]} Nf4 {[%emt 0:00:47]} 42. Rh4 {[%emt 0:00:01]} Kf3 {[%emt 0:00:06]} 43. Bxf4 {[%emt 0:00:18]} Bxf4 {[%emt 0:00:01]} 44. g6 {[%emt 0:00:02]} fxg6 {[%emt 0:00:15]} 45. Nxg6 {[%emt 0:00:01]} Rc8 {[%emt 0:00:04]} 46. Nxf4 {[%emt 0:00:07]} Rf8 {[%emt 0:00:08]} 47. Nd5 {[%emt 0:00:06]} d3 {[%emt 0:00:02]} 48. Rxh7 {[%emt 0:00:10]} Ke4 {[%emt 0:00:03]} 49. Rd7 {[%emt 0:00:03]} Rg8 {[%emt 0:00:04]} 50. f7 {[%emt 0:00:28]} Rg1+ {[%emt 0:00:07]} 51. Kd2 {[%emt 0:00:00]} Rg2+ {[%emt 0:00:00]} 52. Kc3 {[%emt 0:00:01]} a5 {[%emt 0:00:25]} 53. Nf6+ {[%emt 0:00:21]} Ke5 {[%emt 0:00:01]} 54. f8=Q {[%emt 0:00:12]} 1-0

[Event "9th Holuj-Radzikowska Rapid 19"]
[Site "Wroclaw"]
[Date "2019.12.07"]
[Round "4"]
[White "Houska, Jovanka"]
[Black "Antolak, Julia"]
[Result "1-0"]
[ECO "A46"]
[WhiteElo "2412"]
[BlackElo "2249"]
[Annotator "ChessBase"]
[PlyCount "67"]
[EventDate "2019.12.06"]
[EventType "team-tourn"]
[EventCountry "POL"]
[SourceTitle "playchess.com"]
[Source "ChessBase"]
[SourceQuality "1"]
[WhiteTeam "Team World"]
[BlackTeam "Team Poland"]
[TimeControl "900+10"]

1. d4 {[%emt 0:00:00]} Nf6 {[%emt 0:00:00]} 2. Nf3 {[%emt 0:00:00]} d6 {[%emt 0:00:00]} 3. g3 {[%emt 0:00:00]} Nbd7 {[%emt 0:00:00]} 4. Bg2 {[%emt 0:00:33]} e5 {[%emt 0:00:00]} 5. dxe5 {[%emt 0:00:51]} dxe5 {[%emt 0:00:03]} 6. O-O {[%emt 0:00:17]} g6 {[%emt 0:00:25]} 7. a4 {[%emt 0:00:03]} a5 {[%emt 0:00:16]} 8. Nc3 {[%emt 0:00:15]} Bg7 {[%emt 0:00:05]} 9. Qd3 {[%emt 0:00:09]} O-O {[%emt 0:00:35]} 10. Rd1 {[%emt 0:00:19]} Qe7 {[%emt 0:00:32]} 11. Bg5 {[%emt 0:02:39]} c6 {[%emt 0:02:32]} 12. Qd6 {[%emt 0:00:34]} Qxd6 {[%emt 0:00:44]} 13. Rxd6 {[%emt 0:00:01]} Re8 {[%emt 0:00:37]} 14. Rad1 {[%emt 0:00:42]} h6 {[%emt 0:01:00]} 15. Be3 {[%emt 0:00:12]} Nf8 {[%emt 0:01:38]} 16. Nd2 {[%emt 0:03:00]} Ng4 {[%emt 0:02:16]} 17. Bb6 {[%emt 0:00:05]} Nd7 {[%emt 0:00:53]} 18. Nc4 {[%emt 0:00:01]} Nxb6 {[%emt 0:01:11]} 19. Nxb6 {[%emt 0:00:01]} Rb8 {[%emt 0:00:03]} 20. Nxc8 {[%emt 0:01:06]} Rbxc8 {[%emt 0:01:39]} 21. Bh3 {[%emt 0:00:17]} f5 {[%emt 0:00:02]} 22. Bxg4 {[%emt 0:00:14]} fxg4 {[%emt 0:00:06]} 23. Rxg6 {[%emt 0:00:09]} Rcd8 {[%emt 0:00:13]} 24. Rxg4 {[%emt 0:01:08]} Rxd1+ {[%emt 0:00:19]} 25. Nxd1 {[%emt 0:00:01]} Rd8 {[%emt 0:00:01]} 26. Ne3 {[%emt 0:00:01]} Kf7 {[%emt 0:00:06]} 27. Kf1 {[%emt 0:00:17]} Bf6 {[%emt 0:00:32]} 28. h4 {[%emt 0:00:28]} h5 {[%emt 0:00:22]} 29. Rc4 {[%emt 0:00:01]} Ke6 {[%emt 0:00:02]} 30. Ke1 {[%emt 0:00:52]} Be7 {[%emt 0:00:09]} 31. Re4 {[%emt 0:00:26]} Rg8 {[%emt 0:01:16]} 32. f4 {[%emt 0:00:43]} Rxg3 {[%emt 0:00:06]} 33. Rxe5+ {[%emt 0:00:01]} Kf6 {[%emt 0:01:20]} 34. Rxe7 {[%emt 0:00:02]} 1-0

[Event "9th Holuj-Radzikowska Rapid 19"]
[Site "Wroclaw"]
[Date "2019.12.07"]
[Round "4"]
[White "Zawadzka, Jolanta"]
[Black "Arabidze, Meri"]
[Result "1-0"]
[ECO "B46"]
[WhiteElo "2400"]
[BlackElo "2435"]
[Annotator "ChessBase"]
[PlyCount "59"]
[EventDate "2019.12.06"]
[EventType "team-tourn"]
[EventCountry "POL"]
[SourceTitle "playchess.com"]
[Source "ChessBase"]
[SourceQuality "1"]
[WhiteTeam "Team Poland"]
[BlackTeam "Team World"]
[TimeControl "900+10"]

1. e4 c5 2. Nf3 e6 3. d4 cxd4 4. Nxd4 Nc6 5. Nc3 a6 6. Nxc6 bxc6 7. e5 Qc7 8. f4 d5 9. exd6 Bxd6 10. Ne4 Bxf4 11. Bxf4 Qxf4 12. Qd4 e5 13. Nd6+ Kf8 14. Qc5 Ne7 15. Bc4 f6 16. Rd1 Bg4 17. Rd2 h5 18. Rf1 Qxh2 19. Ne4 h4 20. Qd6 Ke8 21. Be6 Bxe6 22. Qxe6 Rd8 23. Rxd8+ Kxd8 24. Qd6+ Ke8 25. Qb8+ Kf7 26. Qxh8 Qxg2 27. Nxf6 Qg3+ 28. Kd1 Nf5 29. Qe8+ Kxf6 30. Qf8+ 1-0

[Event "9th Holuj-Radzikowska Rapid 19"]
[Site "Wroclaw"]
[Date "2019.12.07"]
[Round "4"]
[White "Majdan, Joanna"]
[Black "Badelka, Olga"]
[Result "1/2-1/2"]
[ECO "B24"]
[WhiteElo "2336"]
[BlackElo "2399"]
[Annotator "NA"]
[PlyCount "111"]
[EventDate "2019.12.06"]
[EventType "team-tourn"]
[EventCountry "POL"]
[SourceTitle "playchess.com"]
[Source "ChessBase"]
[SourceQuality "1"]
[WhiteTeam "Team Poland"]
[BlackTeam "Team World"]
[TimeControl "900+10"]

1. e4 c5 2. Nc3 Nc6 3. Bb5 Nd4 4. Nf3 Nxb5 5. Nxb5 a6 6. Nc3 d6 7. d4 cxd4 8. Qxd4 e5 9. Qd3 Be7 10. O-O Be6 11. Nd2 Rc8 12. Rd1 Nf6 13. Nf1 h6 14. Ne3 O-O 15. Bd2 Qb6 16. Be1 Rfd8 17. b3 Bf8 18. Rac1 Re8 19. a4 Nd7 20. Ncd5 Qd8 21. f3 Nc5 22. Qd2 g6 23. a5 f5 24. exf5 gxf5 25. Nc4 Bf7 26. Bf2 Re6 27. Ncb6 Rb8 28. b4 Nd7 29. Nxd7 Qxd7 30. c4 Rg6 31. Ba7 Re8 32. Qf2 Bxd5 33. Rxd5 Qe6 34. Qd2 e4 35. Re1 Rc8 36. c5 dxc5 37. Bxc5 Bxc5+ 38. bxc5 Qe7 39. Rxf5 Rxc5 40. Rxe4 Qc7 41. Qa2+ Kg7 42. Qb2+ Kh7 43. Rxc5 Qxc5+ 44. Kf1 b5 45. axb6 Rxb6 46. Re7+ Qxe7 47. Qxb6 Qa3 48. Kf2 a5 49. g4 a4 50. Qc7+ Kg8 51. Qd8+ Kg7 52. Qd7+ Kg8 53. Qe8+ Kg7 54. Qd7+ Kg8 55. Qe8+ Kg7 56. Qd7+ 1/2-1/2

[Event "9th Holuj-Radzikowska Rapid 19"]
[Site "Wroclaw"]
[Date "2019.12.07"]
[Round "4"]
[White "Sliwicka, Alicja"]
[Black "Zatonskih, Anna"]
[Result "1/2-1/2"]
[ECO "C47"]
[WhiteElo "2264"]
[BlackElo "2420"]
[Annotator "ChessBase"]
[PlyCount "35"]
[EventDate "2019.12.06"]
[EventType "team-tourn"]
[EventCountry "POL"]
[SourceTitle "playchess.com"]
[Source "ChessBase"]
[SourceQuality "1"]
[WhiteTeam "Team Poland"]
[BlackTeam "Team World"]
[TimeControl "900+10"]

1. e4 {[%emt 0:00:00]} e5 {[%emt 0:00:00]} 2. Nf3 {[%emt 0:00:00]} Nf6 {[%emt 0:00:00]} 3. Nc3 {[%emt 0:00:00]} Nc6 {[%emt 0:00:00]} 4. a3 {[%emt 0:00:00]} d5 {[%emt 0:00:12]} 5. Bb5 {[%emt 0:00:00]} dxe4 {[%emt 0:01:17]} 6. Nxe5 {[%emt 0:00:31]} Qd6 {[%emt 0:00:04]} 7. Nxc6 {[%emt 0:00:20]} bxc6 {[%emt 0:00:02]} 8. Be2 {[%emt 0:00:12]} Qe5 {[%emt 0:01:46]} 9. d4 {[%emt 0:00:48]} exd3 {[%emt 0:00:19]} 10. Qxd3 {[%emt 0:00:03]} Bd6 {[%emt 0:00:13]} 11. Be3 {[%emt 0:00:47]} Bf5 {[%emt 0:00:26]} 12. Qc4 {[%emt 0:00:52]} O-O {[%emt 0:00:56]} 13. O-O-O {[%emt 0:00:13]} Ne4 {[%emt 0:07:24]} 14. Nxe4 {[%emt 0:00:40]} Bxe4 {[%emt 0:00:02]} 15. Bd4 {[%emt 0:02:13]} Qg5+ {[%emt 0:01:22]} 16. Be3 {[%emt 0:00:08]} Qe5 {[%emt 0:00:02]} 17. Bd4 {[%emt 0:01:26]} Qg5+ {[%emt 0:00:01]} 18. Be3 {[%emt 0:00:18]} 1/2-1/2

[Event "9th Holuj-Radzikowska Rapid 19"]
[Site "Wroclaw"]
[Date "2019.12.07"]
[Round "5"]
[White "Zatonskih, Anna"]
[Black "Zawadzka, Jolanta"]
[Result "1-0"]
[ECO "D31"]
[WhiteElo "2420"]
[BlackElo "2400"]
[Annotator "NA"]
[PlyCount "75"]
[EventDate "2019.12.06"]
[EventType "team-tourn"]
[EventCountry "POL"]
[SourceTitle "playchess.com"]
[Source "ChessBase"]
[SourceQuality "1"]
[WhiteTeam "Team World"]
[BlackTeam "Team Poland"]
[TimeControl "900+10"]

1. d4 d5 2. c4 e6 3. Nc3 Bb4 4. e3 dxc4 5. Bxc4 a6 6. Nf3 b5 7. Bd3 Bb7 8. a4 c6 9. O-O Nf6 10. e4 Nbd7 11. e5 Nd5 12. Nxd5 cxd5 13. axb5 a5 14. Ng5 g6 15. Qf3 Qe7 16. Be3 h6 17. Qh3 O-O-O 18. Nf3 g5 19. Nd2 Kb8 20. Nb3 Rc8 21. Nxa5 Bxa5 22. Rxa5 Qb4 23. Rfa1 Rc7 24. b6 Qxb6 25. Rb5 Qc6 26. Bxg5 Nb6 27. Rc5 Qd7 28. Bb5 Qc8 29. Bf6 Rg8 30. Qa3 Rxc5 31. dxc5 Nc4 32. Qa7+ Kc7 33. c6 Qb8 34. cxb7 Qxb7 35. Bxc4 dxc4 36. Qxb7+ Kxb7 37. Rc1 Rc8 38. Kf1 1-0

[Event "9th Holuj-Radzikowska Rapid 19"]
[Site "Wroclaw"]
[Date "2019.12.07"]
[Round "5"]
[White "Bodnaruk, Anastasia"]
[Black "Majdan, Joanna"]
[Result "1-0"]
[ECO "B06"]
[WhiteElo "2413"]
[BlackElo "2336"]
[Annotator "NA"]
[PlyCount "65"]
[EventDate "2019.12.06"]
[EventType "team-tourn"]
[EventCountry "POL"]
[SourceTitle "playchess.com"]
[Source "ChessBase"]
[SourceQuality "1"]
[WhiteTeam "Team World"]
[BlackTeam "Team Poland"]
[TimeControl "900+10"]

1. e4 g6 2. d4 Bg7 3. Nc3 d6 4. Be3 a6 5. f4 b5 6. e5 Nd7 7. Nf3 Nh6 8. Bd3 c5 9. Be4 Rb8 10. dxc5 dxc5 11. Qd2 b4 12. Na4 Qc7 13. h3 Nf5 14. Bf2 Bb7 15. Bxb7 Rxb7 16. c4 bxc3 17. Nxc3 h5 18. O-O Qc6 19. Rfe1 O-O 20. Rac1 c4 21. Ne4 Qa4 22. a3 Rfb8 23. Rc2 Qc6 24. Qe2 Nb6 25. b4 Nd5 26. Rxc4 Qe8 27. Nc5 Rb6 28. g4 hxg4 29. hxg4 Nh6 30. Ng5 f6 31. Nge6 Bh8 32. Rd1 Qc6 33. Qd3 1-0

[Event "9th Holuj-Radzikowska Rapid 19"]
[Site "Wroclaw"]
[Date "2019.12.07"]
[Round "5"]
[White "Socko, Monika"]
[Black "Badelka, Olga"]
[Result "1-0"]
[ECO "D20"]
[WhiteElo "2407"]
[BlackElo "2399"]
[Annotator "NA"]
[PlyCount "85"]
[EventDate "2019.12.06"]
[EventType "team-tourn"]
[EventCountry "POL"]
[SourceTitle "playchess.com"]
[Source "ChessBase"]
[SourceQuality "1"]
[WhiteTeam "Team Poland"]
[BlackTeam "Team World"]
[TimeControl "900+10"]

1. d4 {[%emt 0:00:00]} d5 {[%emt 0:00:00]} 2. c4 {[%emt 0:00:00]} dxc4 {[%emt 0:00:00]} 3. e4 {[%emt 0:00:00]} Nf6 {[%emt 0:00:00]} 4. e5 {[%emt 0:00:00]} Nd5 {[%emt 0:00:00]} 5. Bxc4 {[%emt 0:00:00]} Nb6 {[%emt 0:00:00]} 6. Bd3 {[%emt 0:00:03]} Nc6 {[%emt 0:00:00]} 7. Ne2 {[%emt 0:00:06]} Bg4 {[%emt 0:00:10]} 8. f3 {[%emt 0:00:04]} Be6 {[%emt 0:00:29]} 9. Nbc3 {[%emt 0:00:20]} Qd7 {[%emt 0:00:02]} 10. Ne4 {[%emt 0:00:05]} Bd5 {[%emt 0:00:01]} 11. Nc5 {[%emt 0:00:12]} Qc8 {[%emt 0:00:02]} 12. a3 {[%emt 0:00:37]} e6 {[%emt 0:00:05]} 13. Qc2 {[%emt 0:00:11]} Bxc5 {[%emt 0:00:54]} 14. Qxc5 {[%emt 0:00:01]} a6 {[%emt 0:00:15]} 15. O-O {[%emt 0:00:53]} Qd7 {[%emt 0:00:02]} 16. a4 {[%emt 0:01:34]} Nc4 {[%emt 0:01:16]} 17. Bxc4 {[%emt 0:03:52]} b6 {[%emt 0:00:06]} 18. Qa3 {[%emt 0:00:01]} Bxc4 {[%emt 0:00:02]} 19. Qe3 {[%emt 0:01:41]} Bxe2 {[%emt 0:00:05]} 20. Qxe2 {[%emt 0:00:00]} Qxd4+ {[%emt 0:01:07]} 21. Be3 {[%emt 0:00:02]} Qxe5 {[%emt 0:00:15]} 22. Rac1 {[%emt 0:00:05]} Ne7 {[%emt 0:00:28]} 23. f4 {[%emt 0:01:47]} Qd6 {[%emt 0:00:10]} 24. Rcd1 {[%emt 0:00:15]} Nd5 {[%emt 0:00:55]} 25. Bd4 {[%emt 0:01:42]} O-O {[%emt 0:05:34]} 26. f5 {[%emt 0:00:02]} Rfe8 {[%emt 0:00:50]} 27. f6 {[%emt 0:03:27]} e5 {[%emt 0:00:55]} 28. Be3 {[%emt 0:00:06]} g6 {[%emt 0:03:25]} 29. Qf2 {[%emt 0:00:16]} Kh8 {[%emt 0:01:05]} 30. Qh4 {[%emt 0:01:09]} Rg8 {[%emt 0:00:32]} 31. Bh6 {[%emt 0:00:37]} Qc5+ {[%emt 0:00:35]} 32. Kh1 {[%emt 0:00:02]} Rae8 {[%emt 0:00:39]} 33. Rf3 {[%emt 0:00:38]} Qc2 {[%emt 0:00:18]} 34. Rc1 {[%emt 0:00:27]} Qe2 {[%emt 0:00:09]} 35. Rh3 {[%emt 0:00:10]} Qh5 {[%emt 0:00:12]} 36. Qc4 {[%emt 0:00:02]} Qf5 {[%emt 0:00:07]} 37. Qxd5 {[%emt 0:00:04]} Qxf6 {[%emt 0:00:02]} 38. Rf3 {[%emt 0:00:13]} Qh4 {[%emt 0:00:02]} 39. Be3 {[%emt 0:00:12]} f5 {[%emt 0:00:16]} 40. Rff1 {[%emt 0:00:05]} Qe7 {[%emt 0:00:16]} 41. Qb7 {[%emt 0:00:11]} Rc8 {[%emt 0:00:13]} 42. Bxb6 {[%emt 0:00:06]} e4 {[%emt 0:00:14]} 43. Bd4+ {[%emt 0:00:33]} 1-0

[Event "9th Holuj-Radzikowska Rapid 19"]
[Site "Wroclaw"]
[Date "2019.12.07"]
[Round "5"]
[White "Sliwicka, Alicja"]
[Black "Houska, Jovanka"]
[Result "1-0"]
[ECO "B12"]
[WhiteElo "2264"]
[BlackElo "2412"]
[Annotator "NA"]
[PlyCount "53"]
[EventDate "2019.12.06"]
[EventType "team-tourn"]
[EventCountry "POL"]
[SourceTitle "playchess.com"]
[Source "ChessBase"]
[SourceQuality "1"]
[WhiteTeam "Team Poland"]
[BlackTeam "Team World"]
[TimeControl "900+10"]

1. e4 {[%emt 0:00:00]} c6 {[%emt 0:00:00]} 2. d4 {[%emt 0:00:10]} d5 {[%emt 0:00:10]} 3. e5 {[%emt 0:00:10]} Bf5 {[%emt 0:00:10]} 4. c4 {[%emt 0:00:10]} e6 {[%emt 0:00:08]} 5. Nc3 {[%emt 0:00:07]} Ne7 {[%emt 0:00:10]} 6. a3 {[%emt 0:00:06]} dxc4 {[%emt 0:00:05]} 7. Bxc4 {[%emt 0:00:02]} Nd7 {[%emt 0:00:04]} 8. Nge2 {[%emt 0:00:02]} Nb6 {[%emt 0:00:07]} 9. Bb3 {[%emt 0:00:02]} Bg6 {[%emt 0:00:28]} 10. O-O {[%emt 0:00:13]} Ned5 {[%emt 0:00:04]} 11. Ng3 {[%emt 0:00:09]} Be7 {[%emt 0:01:00]} 12. f4 {[%emt 0:00:16]} Nxc3 {[%emt 0:00:20]} 13. bxc3 {[%emt 0:00:02]} Qd7 {[%emt 0:00:01]} 14. Qf3 {[%emt 0:00:20]} Nd5 {[%emt 0:01:36]} 15. c4 {[%emt 0:00:49]} Nb6 {[%emt 0:02:38]} 16. d5 {[%emt 0:00:02]} Bc5+ {[%emt 0:02:45]} 17. Kh1 {[%emt 0:00:01]} Bd4 {[%emt 0:01:24]} 18. Ra2 {[%emt 0:00:18]} a5 {[%emt 0:02:21]} 19. Be3 {[%emt 0:02:16]} Bxe3 {[%emt 0:00:25]} 20. Qxe3 Ra6 21. Rd2 {[%emt 0:00:21]} a4 {[%emt 0:01:27]} 22. dxe6 {[%emt 0:01:20]} fxe6 {[%emt 0:02:13]} 23. Rxd7 {[%emt 0:00:05]} Kxd7 {[%emt 0:00:09]} 24. f5 {[%emt 0:00:34]} exf5 {[%emt 0:00:04]} 25. e6+ {[%emt 0:00:10]} Kc8 {[%emt 0:00:03]} 26. Ba2 {[%emt 0:00:30]} Re8 {[%emt 0:01:00]} 27. Nxf5 {[%emt 0:00:18]} 1-0